[Event "Titled Tuesday Blitz April 11 Early 2023"]
[White "Gabrielian, Artur"]
[Black "HSH1987"]
[WhiteFideId "4131002"]
[WhiteElo "2432"]
[BlackElo "2687"]
[Result "1/2-1/2"]
[Round "08"]
[TimeControl "180+2"]
[Date "2023.04.11"]
[WhiteClock "0:00:12"]
[BlackClock "0:00:10"]

1. e4 {[%clk 0:03:00]}  e5 {[%clk 0:02:58]} 2. Nf3 {[%clk 0:03:00]}  Nc6 {[%clk 0:02:58]} 3. Bc4 {[%clk 0:02:59]}  Bc5 {[%clk 0:02:57]} 4. d3 {[%clk 0:02:59]}  Nf6 {[%clk 0:02:56]} 5. Bg5 {[%clk 0:02:59]}  d6 {[%clk 0:02:56]} 6. c3 {[%clk 0:02:59]}  a6 {[%clk 0:02:55]} 7. Nbd2 {[%clk 0:02:58]}  Ba7 {[%clk 0:02:55]} 8. a4 {[%clk 0:02:57]}  h6 {[%clk 0:02:55]} 9. Bh4 {[%clk 0:02:57]}  g5 {[%clk 0:02:55]} 10. Bg3 {[%clk 0:02:57]}  Bg4 {[%clk 0:02:48]} 11. b4 {[%clk 0:02:49]}  Ne7 {[%clk 0:02:37]} 12. O-O {[%clk 0:02:34]}  Ng6 {[%clk 0:02:35]} 13. Kh1 {[%clk 0:02:32]}  h5 {[%clk 0:02:29]} 14. Qb3 {[%clk 0:02:29]}  Qd7 {[%clk 0:00:58]} 15. h4 {[%clk 0:02:24]}  gxh4 {[%clk 0:00:51]} 16. Nxh4 {[%clk 0:02:22]}  O-O-O {[%clk 0:00:38]} 17. b5 {[%clk 0:02:12]}  a5 {[%clk 0:00:37]} 18. Bxf7 {[%clk 0:02:09]}  Nf8 {[%clk 0:00:33]} 19. Nc4 {[%clk 0:01:50]}  Be6 {[%clk 0:00:25]} 20. Bxe6 {[%clk 0:01:47]}  Nxe6 {[%clk 0:00:26]} 21. b6 {[%clk 0:01:48]}  cxb6 {[%clk 0:00:25]} 22. Nxb6+ {[%clk 0:01:48]}  Bxb6 {[%clk 0:00:24]} 23. Qxb6 {[%clk 0:01:48]}  Qc7 {[%clk 0:00:25]} 24. Qa7 {[%clk 0:01:29]}  Nc5 {[%clk 0:00:25]} 25. Rab1 {[%clk 0:01:24]}  Nxd3 {[%clk 0:00:22]} 26. Rb5 {[%clk 0:00:55]}  Nxe4 {[%clk 0:00:20]} 27. Qe3 {[%clk 0:00:50]}  Ndc5 {[%clk 0:00:19]} 28. Bh2 {[%clk 0:00:43]}  Rdg8 {[%clk 0:00:18]} 29. Nf5 {[%clk 0:00:40]}  Rf8 {[%clk 0:00:15]} 30. Qh3 {[%clk 0:00:40]}  Kb8 {[%clk 0:00:15]} 31. f3 {[%clk 0:00:40]}  Nxc3 {[%clk 0:00:14]} 32. Rb2 {[%clk 0:00:37]}  N3xa4 {[%clk 0:00:14]} 33. Rd2 {[%clk 0:00:37]}  Qc8 {[%clk 0:00:13]} 34. Nxd6 {[%clk 0:00:31]}  Qxh3 {[%clk 0:00:14]} 35. gxh3 {[%clk 0:00:31]}  Ka7 {[%clk 0:00:14]} 36. Bxe5 {[%clk 0:00:31]}  Rhg8 {[%clk 0:00:14]} 37. Bd4 {[%clk 0:00:29]}  b6 {[%clk 0:00:14]} 38. Re2 {[%clk 0:00:23]}  Ka6 {[%clk 0:00:14]} 39. f4 {[%clk 0:00:18]}  Nb3 {[%clk 0:00:14]} 40. Be5 {[%clk 0:00:17]}  Nac5 {[%clk 0:00:14]} 41. Kh2 {[%clk 0:00:17]}  Nd3 {[%clk 0:00:14]} 42. Rd1 {[%clk 0:00:15]}  Nbc5 {[%clk 0:00:14]} 43. Rdd2 {[%clk 0:00:14]}  Nxf4 {[%clk 0:00:13]} 44. Bxf4 {[%clk 0:00:12]}  Rxf4 {[%clk 0:00:14]} 45. Re7 {[%clk 0:00:10]}  h4 {[%clk 0:00:13]} 46. Rb2 {[%clk 0:00:10]}  Rgf8 {[%clk 0:00:12]} 47. Nb5 {[%clk 0:00:10]}  Rf2+ {[%clk 0:00:12]} 48. Rxf2 {[%clk 0:00:10]}  Rxf2+ {[%clk 0:00:13]} 49. Kg1 {[%clk 0:00:11]}  Rf3 {[%clk 0:00:13]} 50. Nc7+ {[%clk 0:00:11]}  Kb7 {[%clk 0:00:13]} 51. Nb5+ {[%clk 0:00:11]}  Kc6 {[%clk 0:00:13]} 52. Nd4+ {[%clk 0:00:11]}  Kd6 {[%clk 0:00:13]} 53. Rh7 {[%clk 0:00:10]}  Rxh3 {[%clk 0:00:12]} 54. Nf5+ {[%clk 0:00:10]}  Ke5 {[%clk 0:00:12]} 55. Nxh4 {[%clk 0:00:10]}  Kd5 {[%clk 0:00:10]} 56. Kg2 {[%clk 0:00:10]}  Rb3 {[%clk 0:00:09]} 57. Rh5+ {[%clk 0:00:11]}  Kc4 {[%clk 0:00:09]} 58. Nf5 {[%clk 0:00:11]}  a4 {[%clk 0:00:09]} 59. Nd6+ {[%clk 0:00:11]}  Kb4 {[%clk 0:00:08]} 60. Rh4+ {[%clk 0:00:12]}  Ka3 {[%clk 0:00:08]} 61. Nc4+ {[%clk 0:00:12]}  Ka2 {[%clk 0:00:08]} 62. Rh6 {[%clk 0:00:12]}  a3 {[%clk 0:00:08]} 63. Nxb6 {[%clk 0:00:12]}  Kb1 {[%clk 0:00:07]} 64. Nc4 {[%clk 0:00:11]}  a2 {[%clk 0:00:07]} 65. Nd2+ {[%clk 0:00:11]}  Kb2 {[%clk 0:00:08]} 66. Nxb3 {[%clk 0:00:12]}  Nxb3 {[%clk 0:00:09]} 67. Ra6 {[%clk 0:00:12]}  a1=Q {[%clk 0:00:09]} 68. Rxa1 {[%clk 0:00:12]}  Nxa1 {[%clk 0:00:10]} 1/2-1/2


[Site "https://www.chess.com"]

[Event "Titled Tuesday Blitz April 11 Early 2023"]
[White "Bharath Subramaniyam H"]
[Black "Krysa, Leandro"]
[WhiteFideId "46634827"]
[BlackFideId "116807"]
[WhiteElo "2395"]
[BlackElo "2489"]
[Result "1-0"]
[Round "08"]
[TimeControl "180+2"]
[Date "2023.04.11"]
[WhiteClock "0:00:48"]
[BlackClock "0:00:03"]

1. d4 {[%clk 0:02:54]}  Nf6 {[%clk 0:02:59]} 2. Nc3 {[%clk 0:02:54]}  d5 {[%clk 0:02:57]} 3. Bf4 {[%clk 0:02:54]}  a6 {[%clk 0:02:55]} 4. e3 {[%clk 0:02:54]}  e6 {[%clk 0:02:54]} 5. g4 {[%clk 0:02:48]}  Bb4 {[%clk 0:02:53]} 6. Bd3 {[%clk 0:02:44]}  c5 {[%clk 0:02:48]} 7. g5 {[%clk 0:02:43]}  Ne4 {[%clk 0:02:45]} 8. Bxe4 {[%clk 0:02:38]}  dxe4 {[%clk 0:02:45]} 9. Ne2 {[%clk 0:02:38]}  Nc6 {[%clk 0:02:35]} 10. dxc5 {[%clk 0:02:38]}  Qa5 {[%clk 0:02:30]} 11. O-O {[%clk 0:02:33]}  e5 {[%clk 0:02:29]} 12. Bg3 {[%clk 0:02:29]}  Bh3 {[%clk 0:02:18]} 13. Nxe4 {[%clk 0:02:23]}  Bxc5 {[%clk 0:02:09]} 14. Qd5 {[%clk 0:01:51]}  Bxf1 {[%clk 0:01:56]} 15. Rxf1 {[%clk 0:01:51]}  Be7 {[%clk 0:01:46]} 16. Qxa5 {[%clk 0:01:45]}  Nxa5 {[%clk 0:01:47]} 17. Bxe5 {[%clk 0:01:45]}  O-O {[%clk 0:01:44]} 18. b3 {[%clk 0:01:44]}  Rac8 {[%clk 0:01:39]} 19. c4 {[%clk 0:01:43]}  b5 {[%clk 0:01:36]} 20. cxb5 {[%clk 0:01:38]}  axb5 {[%clk 0:01:35]} 21. Nd4 {[%clk 0:01:30]}  Nc6 {[%clk 0:01:34]} 22. Nf5 {[%clk 0:01:24]}  Rfe8 {[%clk 0:01:21]} 23. Bxg7 {[%clk 0:01:21]}  Red8 {[%clk 0:00:58]} 24. Nf6+ {[%clk 0:01:14]}  Bxf6 {[%clk 0:00:56]} 25. gxf6 {[%clk 0:01:15]}  h5 {[%clk 0:00:53]} 26. Nh6+ {[%clk 0:01:13]}  Kh7 {[%clk 0:00:52]} 27. Nxf7 {[%clk 0:01:14]}  Rd2 {[%clk 0:00:48]} 28. Rc1 {[%clk 0:01:09]}  Na7 {[%clk 0:00:24]} 29. Rxc8 {[%clk 0:00:56]}  Nxc8 {[%clk 0:00:25]} 30. a4 {[%clk 0:00:50]}  b4 {[%clk 0:00:15]} 31. Ne5 {[%clk 0:00:48]}  Rb2 {[%clk 0:00:06]} 32. Bf8 {[%clk 0:00:48]}  Nb6 {[%clk 0:00:03]} 33. f7 {[%clk 0:00:48]} 1-0


[Site "https://www.chess.com"]

[Event "Titled Tuesday Blitz April 11 Early 2023"]
[White "Kukhmazov, Arsen"]
[Black "Darini, Pouria"]
[WhiteFideId "24108260"]
[BlackFideId "12502200"]
[WhiteElo "2396"]
[BlackElo "2482"]
[Result "1-0"]
[Round "08"]
[TimeControl "180+2"]
[Date "2023.04.11"]
[WhiteClock "0:00:32"]
[BlackClock "0:00:02"]

1. d4 {[%clk 0:02:59]}  Nf6 {[%clk 0:03:00]} 2. c4 {[%clk 0:02:59]}  e6 {[%clk 0:02:59]} 3. Nc3 {[%clk 0:02:59]}  Bb4 {[%clk 0:02:59]} 4. Qc2 {[%clk 0:02:59]}  c5 {[%clk 0:02:59]} 5. e3 {[%clk 0:02:45]}  O-O {[%clk 0:02:58]} 6. Nf3 {[%clk 0:02:45]}  d5 {[%clk 0:02:57]} 7. a3 {[%clk 0:02:44]}  Bxc3+ {[%clk 0:02:53]} 8. bxc3 {[%clk 0:02:45]}  Qc7 {[%clk 0:02:50]} 9. a4 {[%clk 0:02:42]}  Nc6 {[%clk 0:02:40]} 10. Ba3 {[%clk 0:02:32]}  b6 {[%clk 0:02:36]} 11. dxc5 {[%clk 0:02:31]}  Rd8 {[%clk 0:02:30]} 12. cxd5 {[%clk 0:02:31]}  Nxd5 {[%clk 0:02:22]} 13. Bd3 {[%clk 0:02:27]}  h6 {[%clk 0:02:19]} 14. O-O {[%clk 0:02:24]}  bxc5 {[%clk 0:02:16]} 15. Rfd1 {[%clk 0:02:24]}  Qa5 {[%clk 0:02:08]} 16. Rac1 {[%clk 0:02:17]}  Ba6 {[%clk 0:01:39]} 17. Bxa6 {[%clk 0:02:15]}  Qxa6 {[%clk 0:01:40]} 18. Bxc5 {[%clk 0:02:16]}  Rac8 {[%clk 0:01:22]} 19. c4 {[%clk 0:02:15]}  Ndb4 {[%clk 0:01:12]} 20. Qb3 {[%clk 0:02:10]}  Rxd1+ {[%clk 0:01:01]} 21. Rxd1 {[%clk 0:02:11]}  Rb8 {[%clk 0:01:02]} 22. Bd6 {[%clk 0:02:10]}  Rb7 {[%clk 0:00:59]} 23. h3 {[%clk 0:01:53]}  Na5 {[%clk 0:00:54]} 24. Qc3 {[%clk 0:01:48]}  Qxc4 {[%clk 0:00:41]} 25. Be5 {[%clk 0:01:23]}  Qxc3 {[%clk 0:00:32]} 26. Bxc3 {[%clk 0:01:24]}  Nac6 {[%clk 0:00:29]} 27. Rd6 {[%clk 0:01:24]}  Rc7 {[%clk 0:00:23]} 28. Ne5 {[%clk 0:01:15]}  Nxe5 {[%clk 0:00:09]} 29. Bxe5 {[%clk 0:01:16]}  Rc1+ {[%clk 0:00:08]} 30. Kh2 {[%clk 0:01:15]}  Nc6 {[%clk 0:00:09]} 31. Bg3 {[%clk 0:01:07]}  a5 {[%clk 0:00:08]} 32. Rd7 {[%clk 0:01:05]}  Rc4 {[%clk 0:00:08]} 33. Rc7 {[%clk 0:01:05]}  e5 {[%clk 0:00:09]} 34. h4 {[%clk 0:00:55]}  h5 {[%clk 0:00:07]} 35. Kh3 {[%clk 0:00:52]}  f5 {[%clk 0:00:06]} 36. f3 {[%clk 0:00:49]}  Kf8 {[%clk 0:00:04]} 37. e4 {[%clk 0:00:42]}  f4 {[%clk 0:00:04]} 38. Bf2 {[%clk 0:00:41]}  g6 {[%clk 0:00:04]} 39. Bb6 {[%clk 0:00:41]}  Ke8 {[%clk 0:00:02]} 40. g3 {[%clk 0:00:41]}  fxg3 {[%clk 0:00:02]} 41. Kxg3 {[%clk 0:00:42]}  Kf8 {[%clk 0:00:02]} 42. Kf2 {[%clk 0:00:36]}  Ke8 {[%clk 0:00:02]} 43. Ke3 {[%clk 0:00:36]}  Rc2 {[%clk 0:00:02]} 44. f4 {[%clk 0:00:33]}  exf4+ {[%clk 0:00:03]} 45. Kxf4 {[%clk 0:00:34]}  Kf8 {[%clk 0:00:03]} 46. Kg5 {[%clk 0:00:33]}  Rg2+ {[%clk 0:00:03]} 47. Kf6 {[%clk 0:00:33]}  Nd8 {[%clk 0:00:02]} 48. Rc8 {[%clk 0:00:33]}  Kg8 {[%clk 0:00:01]} 49. Rxd8+ {[%clk 0:00:32]}  Kh7 {[%clk 0:00:02]} 1-0


[Site "https://www.chess.com"]

[Event "Titled Tuesday Blitz April 11 Early 2023"]
[White "Domingo Nunez, Ruben"]
[Black "Cornette, Matthieu"]
[WhiteFideId "22245570"]
[BlackFideId "620084"]
[WhiteElo "2404"]
[BlackElo "2478"]
[Result "1-0"]
[Round "08"]
[TimeControl "180+2"]
[Date "2023.04.11"]
[WhiteClock "0:00:17"]
[BlackClock "0:00:05"]

1. b3 {[%clk 0:02:53]}  Nf6 {[%clk 0:03:00]} 2. Bb2 {[%clk 0:02:54]}  g6 {[%clk 0:02:58]} 3. Nf3 {[%clk 0:02:54]}  Bg7 {[%clk 0:02:58]} 4. e3 {[%clk 0:02:54]}  O-O {[%clk 0:02:54]} 5. Be2 {[%clk 0:02:54]}  d6 {[%clk 0:02:54]} 6. O-O {[%clk 0:02:55]}  e5 {[%clk 0:02:54]} 7. c4 {[%clk 0:02:55]}  Nc6 {[%clk 0:02:53]} 8. d4 {[%clk 0:02:56]}  e4 {[%clk 0:02:52]} 9. Nfd2 {[%clk 0:02:56]}  Bf5 {[%clk 0:02:51]} 10. Nc3 {[%clk 0:02:57]}  h5 {[%clk 0:02:51]} 11. Qc2 {[%clk 0:02:54]}  Re8 {[%clk 0:02:51]} 12. Rfc1 {[%clk 0:02:52]}  Nxd4 {[%clk 0:02:42]} 13. exd4 {[%clk 0:02:50]}  e3 {[%clk 0:02:42]} 14. Bd3 {[%clk 0:02:51]}  Bxd3 {[%clk 0:01:24]} 15. Qxd3 {[%clk 0:02:51]}  exd2 {[%clk 0:01:24]} 16. Qxd2 {[%clk 0:02:52]}  Ng4 {[%clk 0:01:24]} 17. Re1 {[%clk 0:02:32]}  Qh4 {[%clk 0:01:24]} 18. h3 {[%clk 0:02:22]}  Nxf2 {[%clk 0:01:24]} 19. Nb5 {[%clk 0:01:44]}  Ne4 {[%clk 0:01:05]} 20. Qd3 {[%clk 0:01:43]}  Qf2+ {[%clk 0:01:01]} 21. Kh2 {[%clk 0:01:39]}  Qf4+ {[%clk 0:00:57]} 22. Kg1 {[%clk 0:01:38]}  Qf2+ {[%clk 0:00:58]} 23. Kh2 {[%clk 0:01:38]}  Qxb2 {[%clk 0:00:57]} 24. Nxc7 {[%clk 0:01:22]}  Qxd4 {[%clk 0:00:45]} 25. Qxd4 {[%clk 0:01:14]}  Bxd4 {[%clk 0:00:46]} 26. Rad1 {[%clk 0:01:14]}  Be5+ {[%clk 0:00:43]} 27. Kg1 {[%clk 0:01:13]}  Nf6 {[%clk 0:00:37]} 28. Nxa8 {[%clk 0:00:58]}  Rxa8 {[%clk 0:00:37]} 29. c5 {[%clk 0:00:59]}  Ne8 {[%clk 0:00:25]} 30. cxd6 {[%clk 0:00:57]}  Bxd6 {[%clk 0:00:25]} 31. Rxe8+ {[%clk 0:00:57]}  Rxe8 {[%clk 0:00:26]} 32. Rxd6 {[%clk 0:00:57]}  Re2 {[%clk 0:00:23]} 33. Rd7 {[%clk 0:00:52]}  Rxa2 {[%clk 0:00:22]} 34. Rxb7 {[%clk 0:00:53]}  a5 {[%clk 0:00:20]} 35. Ra7 {[%clk 0:00:52]}  Ra3 {[%clk 0:00:18]} 36. Rb7 {[%clk 0:00:43]}  Kg7 {[%clk 0:00:18]} 37. Rb5 {[%clk 0:00:43]}  Ra2 {[%clk 0:00:17]} 38. b4 {[%clk 0:00:41]}  a4 {[%clk 0:00:17]} 39. Ra5 {[%clk 0:00:42]}  Kf6 {[%clk 0:00:16]} 40. b5 {[%clk 0:00:42]}  Ke6 {[%clk 0:00:16]} 41. b6 {[%clk 0:00:43]}  Kd6 {[%clk 0:00:16]} 42. Rb5 {[%clk 0:00:37]}  Kc6 {[%clk 0:00:07]} 43. b7 {[%clk 0:00:38]}  Kxb5 {[%clk 0:00:08]} 44. b8=Q+ {[%clk 0:00:38]}  Kc4 {[%clk 0:00:09]} 45. Qc7+ {[%clk 0:00:37]}  Kb4 {[%clk 0:00:09]} 46. Qe7+ {[%clk 0:00:36]}  Kb3 {[%clk 0:00:09]} 47. Qxf7+ {[%clk 0:00:37]}  Kb2 {[%clk 0:00:09]} 48. Qf6+ {[%clk 0:00:37]}  Kb3 {[%clk 0:00:09]} 49. Qe6+ {[%clk 0:00:37]}  Kb2 {[%clk 0:00:10]} 50. Qe5+ {[%clk 0:00:34]}  Kb3 {[%clk 0:00:10]} 51. Qb5+ {[%clk 0:00:33]}  Kc3 {[%clk 0:00:09]} 52. Qc5+ {[%clk 0:00:34]}  Kb3 {[%clk 0:00:10]} 53. Qd5+ {[%clk 0:00:34]}  Kb2 {[%clk 0:00:10]} 54. Qd2+ {[%clk 0:00:35]}  Kb3 {[%clk 0:00:10]} 55. Qd3+ {[%clk 0:00:36]}  Kb2 {[%clk 0:00:10]} 56. Kf2 {[%clk 0:00:30]}  a3 {[%clk 0:00:07]} 57. Ke3 {[%clk 0:00:29]}  Ra1 {[%clk 0:00:07]} 58. Kd4 {[%clk 0:00:28]}  Rc1 {[%clk 0:00:06]} 59. Qb5+ {[%clk 0:00:26]}  Ka1 {[%clk 0:00:05]} 60. Kd3 {[%clk 0:00:19]}  a2 {[%clk 0:00:05]} 61. Kd2 {[%clk 0:00:17]} 1-0


[Site "https://www.chess.com"]

[Event "Titled Tuesday Blitz April 11 Early 2023"]
[White "Skliarov, Viktor"]
[Black "Asis Gargatagli, Hipolito"]
[WhiteFideId "14106736"]
[BlackFideId "2260735"]
[WhiteElo "2317"]
[BlackElo "2557"]
[Result "0-1"]
[Round "08"]
[TimeControl "180+2"]
[Date "2023.04.11"]
[WhiteClock "0:00:09"]
[BlackClock "0:02:04"]

1. e4 {[%clk 0:02:59]}  c5 {[%clk 0:03:00]} 2. Nf3 {[%clk 0:02:59]}  d6 {[%clk 0:03:01]} 3. d4 {[%clk 0:02:59]}  cxd4 {[%clk 0:03:01]} 4. Qxd4 {[%clk 0:03:00]}  Nf6 {[%clk 0:03:02]} 5. Nc3 {[%clk 0:02:59]}  Bd7 {[%clk 0:03:02]} 6. e5 {[%clk 0:02:52]}  Nc6 {[%clk 0:03:02]} 7. Qf4 {[%clk 0:02:52]}  dxe5 {[%clk 0:03:01]} 8. Nxe5 {[%clk 0:02:53]}  Nxe5 {[%clk 0:03:02]} 9. Qxe5 {[%clk 0:02:53]}  e6 {[%clk 0:02:55]} 10. Nb5 {[%clk 0:02:46]}  Nd5 {[%clk 0:02:54]} 11. Nd6+ {[%clk 0:02:40]}  Bxd6 {[%clk 0:02:54]} 12. Qxd6 {[%clk 0:02:40]}  Bc6 {[%clk 0:02:40]} 13. Qxd8+ {[%clk 0:01:58]}  Rxd8 {[%clk 0:02:40]} 14. Bd2 {[%clk 0:01:58]}  f6 {[%clk 0:02:37]} 15. O-O-O {[%clk 0:01:53]}  Kf7 {[%clk 0:02:37]} 16. f3 {[%clk 0:01:49]}  h5 {[%clk 0:02:31]} 17. h4 {[%clk 0:01:40]}  Ne7 {[%clk 0:02:29]} 18. Bd3 {[%clk 0:01:33]}  Ng6 {[%clk 0:02:29]} 19. Bxg6+ {[%clk 0:01:18]}  Kxg6 {[%clk 0:02:30]} 20. Be3 {[%clk 0:01:19]}  a6 {[%clk 0:02:27]} 21. Rxd8 {[%clk 0:01:13]}  Rxd8 {[%clk 0:02:27]} 22. Rd1 {[%clk 0:01:13]}  Rc8 {[%clk 0:02:27]} 23. b3 {[%clk 0:00:59]}  Kf5 {[%clk 0:02:24]} 24. Kb2 {[%clk 0:00:56]}  e5 {[%clk 0:02:24]} 25. c4 {[%clk 0:00:41]}  g5 {[%clk 0:02:15]} 26. hxg5 {[%clk 0:00:38]}  fxg5 {[%clk 0:02:16]} 27. Rd6 {[%clk 0:00:35]}  h4 {[%clk 0:02:16]} 28. Rh6 {[%clk 0:00:32]}  Rg8 {[%clk 0:02:10]} 29. Bc5 {[%clk 0:00:21]}  e4 {[%clk 0:02:09]} 30. fxe4+ {[%clk 0:00:11]}  Bxe4 {[%clk 0:02:10]} 31. g3 {[%clk 0:00:09]}  hxg3 {[%clk 0:02:09]} 32. b4 {[%clk 0:00:10]}  Rc8 {[%clk 0:02:05]} 33. Kc3 {[%clk 0:00:08]}  Rxc5 {[%clk 0:02:04]} 34. bxc5 {[%clk 0:00:09]}  g2 {[%clk 0:02:04]} 0-1


[Site "https://www.chess.com"]

[Event "Titled Tuesday Blitz April 11 Early 2023"]
[White "Galchenko, Matvey"]
[Black "Kaidanov, Gregory"]
[WhiteFideId "24175480"]
[BlackFideId "2008564"]
[WhiteElo "2423"]
[BlackElo "2547"]
[Result "1-0"]
[Round "08"]
[TimeControl "180+2"]
[Date "2023.04.11"]
[WhiteClock "0:00:12"]
[BlackClock "0:00:10"]

1. f4 {[%clk 0:02:58]}  d5 {[%clk 0:02:57]} 2. Nf3 {[%clk 0:02:58]}  Nf6 {[%clk 0:02:58]} 3. g3 {[%clk 0:02:58]}  g6 {[%clk 0:02:58]} 4. Bg2 {[%clk 0:02:58]}  Bg7 {[%clk 0:02:58]} 5. O-O {[%clk 0:02:59]}  O-O {[%clk 0:02:59]} 6. d3 {[%clk 0:03:00]}  c5 {[%clk 0:02:58]} 7. Nc3 {[%clk 0:03:01]}  Nc6 {[%clk 0:02:57]} 8. e4 {[%clk 0:03:01]}  dxe4 {[%clk 0:02:47]} 9. dxe4 {[%clk 0:03:02]}  Qxd1 {[%clk 0:02:46]} 10. Rxd1 {[%clk 0:03:03]}  Bg4 {[%clk 0:02:44]} 11. e5 {[%clk 0:03:03]}  Nd7 {[%clk 0:02:42]} 12. Be3 {[%clk 0:03:03]}  Rfd8 {[%clk 0:02:36]} 13. h3 {[%clk 0:03:02]}  Bxf3 {[%clk 0:02:22]} 14. Bxf3 {[%clk 0:03:03]}  Rac8 {[%clk 0:02:21]} 15. Rd2 {[%clk 0:02:59]}  Kf8 {[%clk 0:02:20]} 16. Rad1 {[%clk 0:02:59]}  Ke8 {[%clk 0:02:20]} 17. Ne4 {[%clk 0:02:41]}  b6 {[%clk 0:02:19]} 18. e6 {[%clk 0:02:32]}  fxe6 {[%clk 0:01:58]} 19. Ng5 {[%clk 0:02:30]}  Ndb8 {[%clk 0:01:53]} 20. Nxe6 {[%clk 0:02:27]}  Rxd2 {[%clk 0:01:53]} 21. Rxd2 {[%clk 0:02:28]}  Kf7 {[%clk 0:01:09]} 22. Bg4 {[%clk 0:02:12]}  Rh8 {[%clk 0:00:56]} 23. Ng5+ {[%clk 0:02:02]}  Kf6 {[%clk 0:00:56]} 24. Be2 {[%clk 0:01:14]}  h6 {[%clk 0:00:42]} 25. Ne4+ {[%clk 0:00:44]}  Kf7 {[%clk 0:00:41]} 26. Bc4+ {[%clk 0:00:43]}  e6 {[%clk 0:00:41]} 27. Rd6 {[%clk 0:00:38]}  Re8 {[%clk 0:00:36]} 28. g4 {[%clk 0:00:35]}  Bd4 {[%clk 0:00:28]} 29. Kf2 {[%clk 0:00:35]}  Bxe3+ {[%clk 0:00:22]} 30. Kxe3 {[%clk 0:00:35]}  Na5 {[%clk 0:00:20]} 31. Bb5 {[%clk 0:00:35]}  Rc8 {[%clk 0:00:19]} 32. c3 {[%clk 0:00:31]}  Ke7 {[%clk 0:00:19]} 33. Rd1 {[%clk 0:00:17]}  Nac6 {[%clk 0:00:18]} 34. Re1 {[%clk 0:00:18]}  Rd8 {[%clk 0:00:17]} 35. Bc4 {[%clk 0:00:18]}  Nd7 {[%clk 0:00:15]} 36. Kf3 {[%clk 0:00:17]}  Nf8 {[%clk 0:00:14]} 37. Ng3 {[%clk 0:00:15]}  Kf7 {[%clk 0:00:15]} 38. f5 {[%clk 0:00:14]}  gxf5 {[%clk 0:00:15]} 39. gxf5 {[%clk 0:00:15]}  Kf6 {[%clk 0:00:14]} 40. fxe6 {[%clk 0:00:15]}  Re8 {[%clk 0:00:14]} 41. Nh5+ {[%clk 0:00:14]}  Kg6 {[%clk 0:00:13]} 42. Nf4+ {[%clk 0:00:14]}  Kf6 {[%clk 0:00:13]} 43. Kg3 {[%clk 0:00:13]}  Ne5 {[%clk 0:00:12]} 44. Nh5+ {[%clk 0:00:13]}  Kg6 {[%clk 0:00:12]} 45. Rxe5 {[%clk 0:00:13]}  Nh7 {[%clk 0:00:10]} 46. Bd3# {[%clk 0:00:12]} 1-0


[Site "https://www.chess.com"]

[Event "Titled Tuesday Blitz April 11 Early 2023"]
[White "Hua, Lefong"]
[Black "Molina, Roberto Junio Brito"]
[WhiteFideId "2602253"]
[BlackFideId "2109450"]
[WhiteElo "2624"]
[BlackElo "2376"]
[Result "0-1"]
[Round "08"]
[TimeControl "180+2"]
[Date "2023.04.11"]
[WhiteClock "0:00:03"]
[BlackClock "0:00:13"]

1. d4 {[%clk 0:03:00]}  c6 {[%clk 0:03:00]} 2. c4 {[%clk 0:03:00]}  d5 {[%clk 0:03:01]} 3. Nf3 {[%clk 0:03:01]}  Nf6 {[%clk 0:03:01]} 4. Nc3 {[%clk 0:03:01]}  dxc4 {[%clk 0:03:01]} 5. a4 {[%clk 0:03:01]}  Bf5 {[%clk 0:03:01]} 6. Ne5 {[%clk 0:03:01]}  Nbd7 {[%clk 0:03:00]} 7. Nxc4 {[%clk 0:03:01]}  Nb6 {[%clk 0:03:01]} 8. Ne5 {[%clk 0:03:01]}  a5 {[%clk 0:03:01]} 9. f3 {[%clk 0:03:00]}  Nfd7 {[%clk 0:03:01]} 10. Nxd7 {[%clk 0:02:55]}  Nxd7 {[%clk 0:03:02]} 11. e4 {[%clk 0:02:55]}  Bg6 {[%clk 0:03:03]} 12. Be3 {[%clk 0:02:48]}  Qb6 {[%clk 0:03:04]} 13. Qd2 {[%clk 0:02:37]}  e5 {[%clk 0:03:04]} 14. dxe5 {[%clk 0:02:14]}  Bc5 {[%clk 0:03:03]} 15. Rd1 {[%clk 0:02:05]}  O-O {[%clk 0:02:12]} 16. Bxc5 {[%clk 0:01:44]}  Nxc5 {[%clk 0:02:13]} 17. Be2 {[%clk 0:01:31]}  Nb3 {[%clk 0:01:53]} 18. Qg5 {[%clk 0:01:20]}  h6 {[%clk 0:01:49]} 19. Qg3 {[%clk 0:01:20]}  Rad8 {[%clk 0:01:45]} 20. Rd6 {[%clk 0:01:14]}  Qc5 {[%clk 0:01:42]} 21. Qf2 {[%clk 0:01:05]}  Qxe5 {[%clk 0:01:40]} 22. Rxd8 {[%clk 0:01:03]}  Rxd8 {[%clk 0:01:41]} 23. f4 {[%clk 0:00:56]}  Qd6 {[%clk 0:01:05]} 24. O-O {[%clk 0:00:48]}  Qb4 {[%clk 0:01:02]} 25. f5 {[%clk 0:00:46]}  Bh7 {[%clk 0:01:02]} 26. f6 {[%clk 0:00:45]}  Qd4 {[%clk 0:00:54]} 27. fxg7 {[%clk 0:00:39]}  Kxg7 {[%clk 0:00:55]} 28. Qxd4+ {[%clk 0:00:32]}  Rxd4 {[%clk 0:00:53]} 29. Rd1 {[%clk 0:00:32]}  Bxe4 {[%clk 0:00:46]} 30. Rxd4 {[%clk 0:00:27]}  Nxd4 {[%clk 0:00:47]} 31. Ba6 {[%clk 0:00:20]}  Bxg2 {[%clk 0:00:36]} 32. Bxb7 {[%clk 0:00:19]}  Bh3 {[%clk 0:00:32]} 33. Ne4 {[%clk 0:00:17]}  Bf5 {[%clk 0:00:26]} 34. Nc5 {[%clk 0:00:17]}  Bc2 {[%clk 0:00:26]} 35. Kf2 {[%clk 0:00:14]}  Kf6 {[%clk 0:00:21]} 36. Ke3 {[%clk 0:00:14]}  Ke5 {[%clk 0:00:15]} 37. Nd7+ {[%clk 0:00:13]}  Kd6 {[%clk 0:00:15]} 38. Kxd4 {[%clk 0:00:06]}  Kxd7 {[%clk 0:00:15]} 39. b4 {[%clk 0:00:06]}  axb4 {[%clk 0:00:14]} 40. a5 {[%clk 0:00:06]}  Kc7 {[%clk 0:00:14]} 41. Ba6 {[%clk 0:00:06]}  Ba4 {[%clk 0:00:13]} 42. Bc4 {[%clk 0:00:05]}  f6 {[%clk 0:00:13]} 43. Kc5 {[%clk 0:00:05]}  b3 {[%clk 0:00:13]} 44. Bd3 {[%clk 0:00:04]}  b2 {[%clk 0:00:13]} 45. h4 {[%clk 0:00:03]}  Bb5 {[%clk 0:00:13]} 46. Bb1 {[%clk 0:00:03]}  Be2 {[%clk 0:00:13]} 47. Bc2 {[%clk 0:00:03]}  Bf3 {[%clk 0:00:12]} 48. Bb1 {[%clk 0:00:03]}  Bd5 {[%clk 0:00:12]} 49. h5 {[%clk 0:00:02]}  Bf7 {[%clk 0:00:12]} 50. Kb4 {[%clk 0:00:02]}  Bxh5 {[%clk 0:00:12]} 51. Kc3 {[%clk 0:00:02]}  Bg4 {[%clk 0:00:12]} 52. Kxb2 {[%clk 0:00:03]}  h5 {[%clk 0:00:12]} 53. Kc3 {[%clk 0:00:03]}  h4 {[%clk 0:00:13]} 54. Bf5 {[%clk 0:00:03]}  Bxf5 {[%clk 0:00:13]} 0-1


[Site "https://www.chess.com"]